bitfinex/quotes_SOLUSD_20250514
["timestamp","ask_amount","ask_price","bid_price","bid_amount"]
[1747237372158,17.21884706,177.07,177.05,22.2146]
[1747237374175,5.64655491,177.1,177.05,22.2146]
[1747237374385,138.0,177.11,177.05,27.86253554]
[1747237374681,17.21884706,177.13,177.06,18.64964886]
[1747237374884,17.21884706,177.14,177.06,19.77890738]
[1747237375060,17.21884706,177.13,177.06,19.77890738]
[1747237375379,17.21884706,177.12,177.06,18.64964886]
[1747237375567,17.21884706,177.12,177.07,5.64748404]
[1747237376581,17.21884706,177.11,177.05,22.2146]
[1747237376787,17.21884706,177.08,177.06,20.52]
[1747237377355,27.55049875,177.09,177.06,20.52]
[1747237377978,27.55049875,177.1,177.06,20.52]
[1747237378363,138.0,177.11,177.06,20.52]
[1747237378364,171.1967143,177.11,177.06,20.52]
[1747237378566,27.55049875,177.1,177.06,20.52]
[1747237378765,165.55049875,177.11,177.06,26.16774876]
[1747237379580,138.0,177.11,177.07,19.77896874]
[1747237380072,138.0,177.11,177.07,40.37896874]
[1747237380979,27.55049875,177.13,177.08,26.0]
[1747237381772,27.55049875,177.13,177.09,5.64684623]
[1747237382986,27.55049875,177.14,177.09,5.64684623]
[1747237383185,27.55049875,177.14,177.08,31.64714088]
[1747237383392,27.55049875,177.13,177.08,31.64714088]
[1747237383566,27.55049875,177.13,177.08,5.64714088]
[1747237383769,27.55049875,177.13,177.07,40.37896874]
[1747237383770,27.55049875,177.09,177.07,20.6]
[1747237384004,138.0,177.14,177.07,20.6]
[1747237384005,27.55049875,177.08,177.07,20.6]
[1747237385387,33.19766387,177.08,177.07,20.6]
[1747237385568,33.19766387,177.08,177.04,20.5]
[1747237385770,27.55049875,177.06,177.04,20.48]
[1747237386487,5.64716512,177.08,177.04,20.48]
[1747237386668,27.55049875,177.06,177.04,20.48]
[1747237387289,27.55049875,177.07,177.04,20.48]
[1747237387497,27.55049875,177.08,177.04,20.48]
[1747237389577,27.55049875,177.07,177.04,20.48]
[1747237390396,5.64722412,177.08,177.04,20.48]
[1747237390772,27.55049875,177.07,177.04,20.48]
[1747237391190,33.19809442,177.07,177.04,20.48]
[1747237391502,27.55049875,177.05,177.01,1.6192]
[1747237391675,27.55049875,177.05,177.04,20.44]
[1747237392901,27.55049875,177.05,177.01,1.6192]
[1747237393113,27.55049875,177.03,177.01,1.6192]
[1747237393444,27.55049875,177.03,177.01,20.42]
[1747237393963,138.0,177.05,177.01,20.42]
[1747237394169,27.55049875,177.04,177.01,20.42]
[1747237394371,27.55049875,177.03,177.01,20.42]
[1747237395103,27.55049875,177.02,176.99,6.2143]
[1747237395267,27.55049875,177.01,176.99,26.6143]
[1747237395469,27.55049875,177.02,176.99,26.6143]
[1747237396196,27.55049875,177.01,176.98,20.6]
[1747237396409,27.55049875,177.03,176.99,20.38]
[1747237397210,5.6490792,177.02,176.99,20.38]
[1747237397611,17.23548487,177.0,176.99,20.38]
[1747237398518,5.6490792,177.02,176.99,20.38]
[1747237398693,17.23548487,177.0,176.99,20.38]
[1747237400215,17.23548487,177.0,176.96,5.65094263]
[1747237400422,17.23548487,177.0,176.97,20.28]
[1747237400609,17.23548487,176.99,176.97,20.3]
[1747237401236,17.23548487,176.98,176.96,20.3]
[1747237401514,17.23548487,176.97,176.96,20.3]
[1747237402102,17.23548487,176.98,176.96,20.3]
[1747237402994,5.64971912,177.0,176.96,20.3]
[1747237403196,17.23548487,176.98,176.96,20.3]
[1747237403720,17.23548487,176.98,176.95,20.24]
[1747237404524,17.23548487,176.99,176.95,25.89114985]
[1747237404919,17.23548487,177.0,176.95,25.89114985]
[1747237405426,138.0,177.02,176.95,25.89114985]
[1747237405596,17.23548487,177.0,176.95,25.89114985]
[1747237406612,143.64917391,177.02,176.95,25.89114985]
[1747237406818,17.23548487,177.01,176.95,25.89114985]
[1747237407236,17.23548487,177.0,176.95,25.89114985]
[1747237408930,17.23548487,176.99,176.95,25.89114985]
[1747237409603,17.23548487,176.98,176.95,20.24]
[1747237409931,17.23548487,176.99,176.95,25.89115403]
[1747237411226,138.0,177.02,176.95,25.89115403]
[1747237411731,160.88459966,177.02,176.95,25.89115403]
[1747237412498,143.64911479,177.02,176.95,25.89115403]
[1747237413004,160.88459966,177.02,176.95,25.89115403]
[1747237413625,17.23548487,177.01,176.95,25.89115403]
[1747237415519,17.23548487,176.99,176.94,5.65151223]
[1747237415913,17.23548487,176.98,176.95,20.02]
[1747237416548,17.23548487,176.98,176.93,27.60136721]
[1747237416840,17.23548487,176.96,176.94,20.0]
[1747237417208,17.23548487,176.96,176.93,21.9495]
[1747237417416,17.23548487,176.94,176.93,40.38]
[1747237417620,17.23548487,176.95,176.93,40.38]
[1747237417835,17.23548487,176.94,176.93,40.38]
[1747237418135,17.23548487,176.94,176.91,19.98]
[1747237418445,17.23548487,176.93,176.91,19.98]
[1747237418608,138.0,176.97,176.91,19.98]
[1747237418809,17.23548487,176.93,176.91,19.98]
[1747237419954,17.23548487,176.95,176.91,19.98]
[1747237421013,17.23548487,176.94,176.91,19.98]
[1747237421213,22.88650107,176.96,176.91,19.98]
[1747237421419,138.0,176.95,176.91,19.98]
[1747237423240,143.65140542,176.95,176.91,19.98]
[1747237423428,155.23548487,176.95,176.91,19.98]
[1747237425130,160.88685045,176.95,176.91,19.98]
[1747237425328,138.0,176.95,176.91,25.63255033]
[1747237425630,138.0,176.95,176.81,14.52581139]
[1747237425631,26.0,176.89,176.78,1.6462]
[1747237425831,17.23548487,176.85,176.78,21.5262]
[1747237426246,17.23548487,176.86,176.79,5.65632849]
[1747237426425,26.0,176.91,176.8,18.64964886]
[1747237426631,17.23548487,176.87,176.8,23.22091636]
[1747237427038,17.23548487,176.86,176.79,26.0]
[1747237427245,17.23548487,176.85,176.8,19.88]
[1747237427562,17.23548487,176.83,176.78,1.6462]
[1747237428059,17.23548487,176.82,176.78,1.6462]
[1747237428352,22.8917645,176.8,176.78,21.4862]
[1747237428557,17.23548487,176.82,176.78,21.4862]
[1747237428959,27.64466157,176.88,176.78,21.4862]
[1747237428960,17.23548487,176.8,176.78,21.4862]
[1747237430155,17.23548487,176.81,176.78,21.4862]
[1747237430563,14.1351384,176.87,176.78,21.4862]
[1747237430564,17.23548487,176.82,176.78,21.4862]
[1747237430735,17.23548487,176.83,176.78,21.4862]
[1747237430973,17.23548487,176.83,176.78,27.14293726]
[1747237431773,138.0,176.85,176.78,27.14293726]
[1747237432136,138.0,176.85,176.79,18.64964886]
[1747237432537,138.0,176.85,176.8,5.65610859]
[1747237433655,5.65324954,176.89,176.81,18.64964886]
[1747237433848,17.23548487,176.87,176.81,18.64964886]
[1747237434567,138.0,176.89,176.82,5.65546883]
[1747237434764,17.23548487,176.88,176.82,5.65546883]
[1747237436954,138.0,176.89,176.84,1.5507]
[1747237437175,138.0,176.89,176.85,19.8]
[1747237439358,160.88880876,176.89,176.85,19.8]
[1747237439675,17.23548487,176.88,176.85,19.8]
[1747237440376,155.23548487,176.89,176.85,19.8]
[1747237440678,160.88873016,176.89,176.85,19.8]
[1747237441043,138.0,176.89,176.85,25.45444005]
[1747237441754,138.0,176.89,176.85,19.8]
[1747237441958,160.88883723,176.89,176.85,19.8]
[1747237442147,17.23548487,176.88,176.85,19.8]
[1747237442560,17.23548487,176.88,176.86,19.8]
[1747237442895,143.65335236,176.89,176.86,19.8]
[1747237443040,17.23548487,176.87,176.86,19.8]
[1747237443977,17.23548487,176.87,176.85,19.8]
[1747237444183,17.23548487,176.86,176.85,19.8]
[1747237445853,17.23548487,176.87,176.85,19.8]
[1747237447504,17.23548487,176.86,176.85,19.8]
[1747237447985,17.23548487,176.86,176.84,19.8]
[1747237448152,17.23548487,176.85,176.83,19.88]
[1747237448353,17.23548487,176.84,176.83,19.88]
[1747237448552,22.89038548,176.84,176.82,19.8]
[1747237448754,17.23548487,176.83,176.82,19.8]
[1747237448952,17.23548487,176.83,176.76,27.06180679]
[1747237449178,17.23548487,176.8,176.77,19.8]
[1747237449690,17.23548487,176.8,176.76,21.4045]
[1747237449691,17.23548487,176.79,176.78,19.8]
[1747237449872,17.23548487,176.8,176.78,19.8]
[1747237450771,17.23548487,176.79,176.78,19.8]
[1747237450974,17.23548487,176.8,176.78,19.8]
[1747237451596,17.23548487,176.79,176.78,19.8]
[1747237452297,17.23548487,176.79,176.77,19.8]
[1747237453544,5.65613715,176.8,176.77,19.8]
[1747237453689,17.23548487,176.8,176.77,19.8]
[1747237453996,17.23548487,176.82,176.77,19.8]
[1747237454309,135.23548487,176.83,176.77,19.8]
[1747237454601,152.47096974,176.83,176.77,19.8]
[1747237454999,152.47096974,176.83,176.78,5.6567485]
[1747237455802,135.23548487,176.83,176.78,5.6567485]
[1747237456189,135.23548487,176.83,176.78,31.6567485]
[1747237458706,17.23548487,176.81,176.79,19.8]
[1747237459292,17.23548487,176.82,176.76,21.3245]
[1747237459473,17.23548487,176.82,176.77,19.8]
[1747237459674,17.23548487,176.82,176.77,25.45701587]
[1747237460911,22.89106962,176.82,176.77,19.8]
[1747237461107,17.23548487,176.81,176.77,19.8]
[1747237461414,22.89130332,176.81,176.77,19.8]
[1747237461984,17.23548487,176.8,176.77,19.8]
[1747237462190,17.23548487,176.79,176.77,19.8]
[1747237462416,17.23548487,176.8,176.77,19.8]
[1747237463418,22.89163094,176.8,176.77,19.8]
[1747237463930,22.89163094,176.8,176.76,21.3245]
[1747237464107,17.23548487,176.79,176.77,19.8]
[1747237464482,5.65614607,176.8,176.77,19.8]
[1747237464820,17.23548487,176.78,176.77,19.8]
[1747237465591,5.6565922,176.79,176.77,19.8]
[1747237465592,17.23548487,176.79,176.77,19.8]
[1747237465910,22.89192145,176.79,176.77,19.8]
[1747237466118,17.23548487,176.79,176.77,19.8]
[1747237466319,17.23548487,176.8,176.77,19.8]
[1747237467113,17.23548487,176.79,176.77,19.8]
[1747237467902,17.23548487,176.8,176.77,19.8]
[1747237469190,22.89160379,176.8,176.77,19.8]
[1747237469890,17.23548487,176.8,176.77,19.8]
[1747237470618,135.23548487,176.83,176.77,19.8]
[1747237470806,17.23548487,176.82,176.77,19.8]
[1747237471016,17.23548487,176.82,176.77,25.45698008]
[1747237472419,135.23548487,176.83,176.77,25.45698008]
[1747237472628,135.23548487,176.83,176.77,65.59965134]
[1747237472794,135.23548487,176.83,176.78,6.6409]
[1747237473198,135.23548487,176.83,176.79,1.6515]
[1747237473397,135.23548487,176.83,176.79,2.05005072]
[1747237473920,135.23548487,176.83,176.8,5.65610859]
[1747237474120,135.23548487,176.83,176.79,1.6515]
[1747237475100,135.23548487,176.83,176.79,7.30782366]
[1747237475300,135.23548487,176.83,176.79,1.6515]
[1747237475510,135.23548487,176.83,176.79,7.30789389]
[1747237476332,17.23548487,176.86,176.79,7.30789389]
[1747237476635,135.23548487,176.89,176.8,45.78062088]
[1747237476797,135.23548487,176.89,176.83,26.0]
[1747237477003,135.23548487,176.89,176.84,19.8]
[1747237477505,158.1230204,176.93,176.85,7.533]
[1747237477705,152.47096974,176.93,176.85,7.533]
[1747237478017,17.23548487,176.92,176.86,5.65418975]
[1747237480312,22.88783374,176.92,176.86,5.65418975]
[1747237480518,17.23548487,176.89,176.87,19.8]
[1747237481427,17.23548487,176.89,176.86,19.8]
[1747237481604,17.23548487,176.89,176.87,19.8]
[1747237482532,152.47096974,176.93,176.87,19.8]
[1747237483007,135.23548487,176.93,176.87,19.8]
[1747237483502,135.23548487,176.93,176.88,5.65355042]
[1747237484301,135.23548487,176.93,176.89,18.64964886]
[1747237485549,135.23548487,176.93,176.9,5.65291124]
[1747237487131,135.23548487,176.93,176.87,19.8]
[1747237487296,135.23548487,176.93,176.88,5.65348572]
[1747237487501,158.12295188,176.93,176.87,19.8]
[1747237487702,17.23548487,176.92,176.87,19.8]
[1747237488632,17.23548487,176.92,176.87,25.45380358]
[1747237489347,135.23548487,176.93,176.88,18.64964886]
[1747237490833,135.23548487,176.93,176.89,5.65323082]
[1747237493107,135.23548487,176.93,176.9,19.78]
[1747237493610,152.47096974,176.93,176.9,19.78]
[1747237494006,135.23548487,176.93,176.9,19.78]
[1747237495320,135.23548487,176.93,176.91,5.65259171]
[1747237495522,22.88589895,176.98,176.91,5.65259171]
[1747237495754,135.23548487,176.97,176.91,5.65259171]
[1747237496064,152.47096974,176.97,176.91,5.65259171]
[1747237496649,158.12181921,176.97,176.91,5.65259171]
[1747237496855,17.23548487,176.96,176.91,5.65259171]
[1747237497361,140.88633434,176.97,176.86,19.78]
[1747237497362,17.23548487,176.92,176.86,19.78]
[1747237497545,17.23548487,176.88,176.85,7.533]
[1747237497721,17.23548487,176.86,176.85,19.78]
[1747237498634,22.88967462,176.86,176.85,19.78]
[1747237499337,17.23548487,176.86,176.85,19.78]
[1747237499921,22.88967462,176.86,176.85,19.78]
[1747237500549,22.88967462,176.86,176.81,19.78]
[1747237500752,17.23548487,176.83,176.81,39.56]
[1747237500952,17.23548487,176.84,176.81,39.56]
[1747237501175,152.47096974,176.85,176.81,39.56]
[1747237501328,135.23548487,176.85,176.81,39.56]
[1747237502375,135.23548487,176.85,176.81,45.21563994]
[1747237502980,17.23548487,176.84,176.78,26.0]
[1747237503283,17.23548487,176.84,176.82,19.78]
[1747237504255,140.88999551,176.85,176.82,19.78]
[1747237504452,135.23548487,176.85,176.82,19.78]
[1747237504648,135.23548487,176.85,176.82,25.43544593]
[1747237504867,135.23548487,176.85,176.83,1.5128]
[1747237505458,140.8875263,176.93,176.84,50.94394886]
[1747237505696,135.23548487,176.93,176.85,19.78]
[1747237505902,158.12307131,176.93,176.85,19.78]
[1747237506185,135.23548487,176.93,176.86,18.64964886]
[1747237506352,135.23548487,176.93,176.88,24.30319928]
[1747237506550,135.23548487,176.93,176.89,19.78]
[1747237507470,158.12296846,176.93,176.89,19.78]
[1747237507650,17.23548487,176.9,176.89,19.78]
[1747237508552,22.88839611,176.9,176.89,19.78]
[1747237509183,17.23548487,176.91,176.89,19.78]
[1747237509352,152.47096974,176.93,176.89,19.78]
[1747237510100,135.23548487,176.93,176.89,19.78]
[1747237510269,152.47096974,176.93,176.89,19.78]
[1747237510605,17.23548487,176.92,176.89,19.78]
[1747237511397,27.6041748,176.9,176.89,19.78]
[1747237512188,27.6041748,176.91,176.89,19.78]
[1747237512696,162.83965967,176.9,176.83,1.5128]
[1747237512991,27.6041748,176.85,176.81,19.78]
[1747237513171,27.6041748,176.85,176.84,19.78]
[1747237513812,27.6041748,176.86,176.84,19.78]
[1747237514106,27.6041748,176.88,176.84,19.78]
[1747237516172,27.6041748,176.88,176.84,25.43475445]
[1747237519114,135.23548487,176.89,176.84,25.43475445]
[1747237519578,162.83965967,176.89,176.84,25.43475445]
[1747237521156,27.6041748,176.88,176.83,31.65504317]
[1747237521280,33.25778797,176.88,176.85,19.76]
[1747237521482,27.6041748,176.86,176.84,19.76]
[1747237521694,27.6041748,176.85,176.84,19.76]
[1747237521894,27.6041748,176.86,176.84,19.76]
[1747237522584,162.83965967,176.87,176.84,19.76]
[1747237522888,135.23548487,176.87,176.84,19.76]
[1747237523310,135.23548487,176.87,176.84,25.41460714]
[1747237524605,135.23548487,176.87,176.84,19.76]
[1747237525707,27.6041748,176.86,176.85,19.76]
[1747237526589,162.83965967,176.87,176.85,19.76]
[1747237527005,27.6041748,176.86,176.85,19.76]
[1747237527610,5.65450947,176.85,176.82,39.52]
[1747237527794,33.25868427,176.85,176.82,39.52]
[1747237528382,27.6041748,176.83,176.82,39.52]
[1747237528700,27.6041748,176.83,176.82,19.76]
[1747237529100,27.6041748,176.83,176.78,211.58]
[1747237529302,27.6041748,176.8,176.79,19.76]
[1747237529717,33.26028339,176.8,176.79,19.76]
[1747237530211,27.6041748,176.8,176.79,19.76]
[1747237530408,33.26002834,176.81,176.79,19.76]
[1747237531012,135.23548487,176.82,176.79,25.41640733]
[1747237532300,33.25839423,176.86,176.79,25.41640733]
[1747237532688,27.6041748,176.85,176.79,25.41640733]
[1747237532917,27.6041748,176.84,176.77,5.65695515]
[1747237533098,27.6041748,176.83,176.78,39.52]
[1747237533609,27.6041748,176.84,176.78,39.52]
[1747237534321,5.65421943,176.86,176.78,39.52]
[1747237534322,27.6041748,176.85,176.78,39.52]
[1747237534708,27.6041748,176.86,176.79,5.65642853]
[1747237535026,162.83965967,176.87,176.79,45.79749985]
[1747237535202,135.23548487,176.87,176.8,20.27454886]
[1747237535403,135.23548487,176.87,176.81,6.4917]
[1747237535605,1.579,176.96,176.81,6.4917]
[1747237535606,168.49202061,176.92,176.82,45.78046432]
[1747237535929,162.83965967,176.91,176.82,44.64964886]
[1747237536136,27.6041748,176.88,176.84,26.0]
[1747237536342,27.6041748,176.86,176.84,19.76]
[1747237536509,27.6041748,176.89,176.84,19.76]
[1747237536714,168.49242485,176.91,176.85,5.65450947]
[1747237537115,168.49242485,176.91,176.84,25.41476002]
[1747237537732,162.83965967,176.91,176.84,25.41476002]
[1747237538124,168.49227609,176.91,176.84,25.41476002]
[1747237538541,162.83965967,176.91,176.84,51.41476002]
[1747237539117,135.23548487,176.91,176.84,51.41476002]
[1747237539337,135.23548487,176.91,176.84,65.55183308]
[1747237540340,140.88808307,176.91,176.84,51.41476002]
[1747237540944,168.49225787,176.91,176.84,51.41476002]
[1747237541247,27.6041748,176.9,176.84,51.41476002]
[1747237541420,162.83965967,176.9,176.84,51.41476002]
[1747237541816,162.83965967,176.9,176.84,45.76]
[1747237542231,162.83965967,176.9,176.84,51.41468667]
[1747237542411,135.23548487,176.9,176.84,51.41468667]
[1747237544256,168.49257362,176.9,176.84,51.41468667]
[1747237545638,27.6041748,176.85,176.81,6.4917]
[1747237545867,27.6041748,176.82,176.8,1.6249]
[1747237546168,27.6041748,176.81,176.79,19.74]
[1747237546872,27.6041748,176.8,176.78,19.76]
[1747237547181,27.6041748,176.79,176.73,19.76]
[1747237547343,27.6041748,176.75,176.73,39.5]
[1747237547681,135.23548487,176.78,176.73,45.15830772]
[1747237547856,5.65578869,176.81,176.73,45.15830772]
[1747237548054,27.6041748,176.8,176.73,45.15830772]
[1747237548258,27.6041748,176.78,176.73,39.5]
[1747237548659,27.6041748,176.78,176.73,65.5]
[1747237548948,27.6041748,176.78,176.74,19.74]
[1747237549878,27.6041748,176.76,176.74,19.74]
[1747237550842,162.83965967,176.77,176.74,19.74]
[1747237551779,27.6041748,176.75,176.74,19.74]
[1747237551985,27.6041748,176.75,176.73,39.5]
[1747237552761,135.23548487,176.77,176.73,39.5]
[1747237552963,135.23548487,176.81,176.73,45.15830463]
[1747237553194,168.49547881,176.81,176.73,45.15830463]
[1747237553492,162.83965967,176.81,176.73,45.15830463]
[1747237553860,135.23548487,176.81,176.74,18.64964886]
[1747237554264,140.88961429,176.87,176.79,27.5496]
[1747237554486,17.07971345,176.9,176.8,25.8075]
[1747237554665,27.6041748,176.87,176.8,25.8075]
[1747237555491,33.25832399,176.87,176.8,31.46338518]
[1747237555865,27.6041748,176.87,176.8,31.46338518]
[1747237556069,2.94697491,176.9,176.8,31.46338518]
[1747237556394,27.6041748,176.9,176.8,31.46338518]
[1747237556574,27.6041748,176.89,176.8,31.46338518]
[1747237556777,162.83965967,176.9,176.84,26.0]
[1747237557002,135.23548487,176.9,176.84,26.0]
[1747237557799,135.23548487,176.9,176.85,5.65450947]
[1747237557974,135.23548487,176.9,176.86,19.74]
[1747237558360,140.88846528,176.9,176.86,19.74]
[1747237558566,168.49264008,176.9,176.86,19.74]
[1747237559068,162.83965967,176.9,176.86,19.74]
[1747237559293,135.23548487,176.9,176.86,19.74]
[1747237559470,140.88842275,176.9,176.86,19.74]
[1747237559672,168.49259755,176.9,176.86,19.74]
[1747237559874,168.49259755,176.9,176.87,19.74]
[1747237561892,27.6041748,176.88,176.8,31.46355114]
[1747237562068,27.6041748,176.86,176.81,19.74]
[1747237562407,27.6041748,176.84,176.79,1.5496]
[1747237562609,135.23548487,176.87,176.8,19.72]
[1747237562610,27.6041748,176.83,176.8,19.72]
[1747237563118,135.23548487,176.87,176.76,6.6432]
[1747237563119,27.6041748,176.82,176.76,6.6432]
[1747237563393,27.6041748,176.82,176.79,19.72]
[1747237564376,138.18332477,176.87,176.79,19.72]
[1747237564679,162.83965967,176.87,176.79,25.37636036]
[1747237564990,135.23548487,176.87,176.82,26.0]
[1747237565295,135.23548487,176.87,176.83,1.5239]
[1747237565990,135.23548487,176.87,176.84,5.65482922]
[1747237566323,135.23548487,176.87,176.85,19.72]
[1747237569482,135.23548487,176.87,176.85,25.37450176]
[1747237570207,135.23548487,176.87,176.85,19.72]
[1747237572590,135.23548487,176.87,176.83,1.5239]
[1747237572784,140.88947164,176.87,176.85,19.72]
[1747237573008,135.23548487,176.87,176.83,1.5239]
[1747237573175,135.23548487,176.87,176.84,19.72]
[1747237573176,140.88940618,176.87,176.84,19.72]
[1747237573586,27.6041748,176.85,176.79,27.5938]
[1747237573784,27.6041748,176.84,176.8,19.72]
[1747237574192,27.6041748,176.83,176.8,19.72]
[1747237574506,135.23548487,176.83,176.8,19.72]
[1747237576183,135.23548487,176.83,176.77,26.0]
[1747237576376,27.6041748,176.82,176.78,19.72]
[1747237576606,135.23548487,176.83,176.78,19.72]
[1747237577916,135.23548487,176.83,176.79,18.64964886]
[1747237578139,135.23548487,176.83,176.8,5.65610859]
[1747237578811,135.23548487,176.83,176.82,26.0]
[1747237580013,33.25774653,176.88,176.81,19.7]
[1747237580213,27.6041748,176.87,176.81,19.7]
[1747237580416,27.6041748,176.87,176.82,19.72]
[1747237580838,27.6041748,176.84,176.78,5.65645899]
[1747237581139,27.6041748,176.84,176.81,19.72]
[1747237581371,162.83965967,176.86,176.81,19.72]
[1747237581712,162.83965967,176.86,176.82,19.72]
[1747237581914,135.23548487,176.85,176.82,19.72]
[1747237582133,162.83965967,176.85,176.82,19.72]
[1747237582333,168.49421809,176.85,176.82,19.72]
[1747237582545,135.23548487,176.85,176.82,19.72]
[1747237582751,140.89019698,176.85,176.82,19.72]
[1747237583057,140.89019698,176.85,176.79,19.7]
[1747237583058,27.6041748,176.84,176.79,19.7]
[1747237583611,27.6041748,176.84,176.77,19.7]
[1747237583862,162.83965967,176.83,176.78,19.7]
[1747237584226,5.65546883,176.82,176.78,19.7]
[1747237584550,162.83965967,176.83,176.78,19.7]
[1747237584849,168.49490118,176.83,176.78,19.7]
[1747237585234,168.49490118,176.83,176.74,211.64]
[1747237585235,27.6041748,176.8,176.74,211.64]
[1747237585447,135.23548487,176.82,176.75,19.7]
[1747237585633,27.6041748,176.8,176.75,19.7]
[1747237585949,27.6041748,176.81,176.75,19.7]
[1747237586144,135.23548487,176.82,176.76,19.7]
[1747237586331,135.23548487,176.82,176.77,5.6570685]
[1747237587651,135.23548487,176.87,176.8,18.64964886]
[1747237588446,135.23548487,176.87,176.81,5.65578869]
[1747237588627,135.23548487,176.87,176.82,19.7]
[1747237588949,135.23548487,176.87,176.83,19.92273203]
[1747237589255,135.23548487,176.87,176.84,19.7]
[1747237590051,135.23548487,176.87,176.82,26.0]
[1747237590052,140.8894639,176.87,176.82,26.0]
[1747237590250,140.8894639,176.87,176.83,19.7]
[1747237591139,140.8894639,176.87,176.8,19.7]
[1747237591140,27.6041748,176.84,176.8,19.7]
[1747237591330,27.6041748,176.83,176.8,19.7]
[1747237591536,27.6041748,176.84,176.8,19.7]
[1747237593933,27.6041748,176.83,176.8,19.7]
[1747237594137,27.6041748,176.81,176.75,7.7804]
[1747237594352,27.6041748,176.81,176.76,19.7]
[1747237594353,27.6041748,176.8,176.76,19.7]
[1747237594859,5.65591207,176.81,176.76,19.7]
[1747237595453,27.6041748,176.81,176.76,19.7]
[1747237595759,27.6041748,176.8,176.77,19.7]
[1747237597151,27.6041748,176.79,176.77,19.7]
[1747237597458,27.6041748,176.78,176.71,19.7]
[1747237597628,27.6041748,176.76,176.75,19.7]
[1747237598333,27.6041748,176.77,176.75,19.7]
[1747237598867,162.83965967,176.76,176.68,13.59284459]
[1747237599154,27.6041748,176.7,176.66,19.7]
[1747237599355,27.6041748,176.71,176.66,19.7]
[1747237600365,27.6041748,176.7,176.66,19.7]
[1747237600663,27.6041748,176.69,176.67,19.7]
[1747237602439,5.6590195,176.71,176.65,5.66087079]
[1747237602668,5.65802874,176.74,176.66,19.7]
[1747237602847,27.6041748,176.72,176.66,19.7]
[1747237603164,27.6041748,176.69,176.66,19.7]
[1747237603567,27.6041748,176.7,176.66,19.7]
[1747237605569,27.6041748,176.72,176.66,25.36055901]
[1747237607177,135.23548487,176.74,176.66,19.7]
[1747237607178,27.6041748,176.7,176.66,19.7]
[1747237607550,27.6041748,176.69,176.66,19.7]
[1747237607947,27.6041748,176.7,176.66,19.7]
[1747237608975,27.6041748,176.7,176.66,25.36051777]
[1747237609346,5.65875751,176.72,176.66,19.7]
[1747237609647,27.6041748,176.7,176.66,19.7]
[1747237609840,27.6041748,176.7,176.66,25.36047435]
[1747237610346,27.6041748,176.71,176.66,25.36047435]
[1747237611245,27.6041748,176.72,176.66,25.36047435]
[1747237611447,27.6041748,176.71,176.66,25.36047435]
[1747237611673,27.6041748,176.7,176.62,26.0]
[1747237611876,27.6041748,176.69,176.63,39.4]
[1747237612192,27.6041748,176.68,176.63,39.4]
[1747237612348,27.6041748,176.67,176.63,19.7]
[1747237612541,27.6041748,176.67,176.64,19.7]
[1747237612747,27.6041748,176.68,176.64,19.7]
[1747237613373,33.26416803,176.68,176.63,25.36143988]
[1747237613646,27.6041748,176.68,176.64,19.7]
[1747237613858,27.6041748,176.7,176.64,19.7]
[1747237614659,135.23548487,176.72,176.64,19.7]
[1747237614861,162.83965967,176.72,176.66,1.5372]
[1747237615075,135.23548487,176.72,176.66,1.5372]
[1747237615298,135.23548487,176.72,176.67,6.2877]
[1747237617479,162.83965967,176.72,176.68,5.65995019]
[1747237617797,27.6041748,176.7,176.69,19.7]
[1747237618095,27.6041748,176.71,176.69,19.7]
[1747237619201,140.89423639,176.72,176.69,19.7]
[1747237619202,135.23548487,176.72,176.69,19.7]
[1747237619906,135.23548487,176.72,176.69,25.35948359]
[1747237624823,135.23548487,176.72,176.69,19.7]
[1747237624998,162.83965967,176.72,176.69,19.7]
[1747237625174,135.23548487,176.72,176.69,19.7]
[1747237625707,168.49838972,176.72,176.69,19.7]
[1747237625905,33.26363515,176.7,176.66,1.5372]
[1747237626077,5.65906759,176.71,176.67,19.7]
[1747237626276,27.6041748,176.71,176.67,19.7]
[1747237626693,135.23548487,176.78,176.69,18.64964886]